[Event "Czech Open-GM 2022"]
[Site "Pardubice"]
[Date "2022.07.25"]
[Round "4.23"]
[White "Lalic, Bogdan"]
[Black "Koziorowicz, Michal"]
[Result "1/2-1/2"]
[ECO "E97"]
[WhiteElo "2412"]
[BlackElo "2231"]
[Annotator "TA"]
[PlyCount "80"]
[EventDate "2022.07.22"]
[EventType "swiss"]
[EventCountry "CZE"]
[SourceTitle "playchess.com"]
[Source "ChessBase"]
[SourceQuality "1"]
[TimeControl "40/5400+30:1800+30"]

{[%evp 24,80,34,29,24,40,20,15,35,0,54,56,110,72,111,40,83,90,87,98,108,79,116,28,22,15,22,22,25,24,18,36,34,-34,56,34,37,40,39,0,0,0,0,0,0,0,0,0,0,0,0,0,0,0,0,0,0,0,0]} 1. d4 {[%emt 0:02:44]} Nf6 {[%emt 0:00:33]} 2. c4 {[%emt 0:00:11]} g6 {[%emt 0:00:27]} 3. Nc3 {[%emt 0:00:30]} Bg7 {[%emt 0:00:17]} 4. e4 {[%emt 0:00:14]} d6 {[%emt 0:00:10]} 5. Nf3 {[%emt 0:00:13]} O-O {[%emt 0:00:09]} 6. Be2 {[%emt 0:00:07]} e5 {[%emt 0:00:16]} 7. O-O {[%emt 0:00:11]} Nc6 {[%emt 0:00:11]} 8. Be3 {[%emt 0:00:12]} Ng4 {[%emt 0:08:36]} 9. Bg5 {[%emt 0:00:15][%cal Be3g5,Bg5h4,Bh4g3][%mdl 32]} f6 {[%emt 0:00:06]} 10. Bh4 {[%emt 0:00:09]} g5 {[%emt 0:01:23]} 11. Bg3 {[%emt 0:00:10]} Nh6 {[%emt 0:00:19]} 12. dxe5 {[%emt 0:00:15]} fxe5 {[%emt 0:00:27]} 13. h3 {[%emt 0:00:19][%cal Oc4c5] 13.Nd5 is the fancy move.} g4 {[%emt 0:04:48] E97: King's Indian: Classical Main Line (6...e5 7 0-0 Nc6): 8 Be3 and 8 d5 Ne7, not 9 Ne1.} 14. hxg4 {[%emt 0:00:16]} Bxg4 {[%emt 0:00:15]} 15. Ne1 {[%emt 0:09:32]} Be6 {[%emt 0:10:55]} 16. Nc2 {[%emt 0:00:36]} Bf6 {[%emt 0:02:58]} ({Black should play} 16... Qg5 $11) 17. Nd5 $14 {[%emt 0:01:31]} Bxd5 {[%emt 0:03:34]} (17... a5 $14) 18. Qxd5+ {[%emt 0:00:18]} (18. exd5 Ne7 $14) 18... Kh8 {[%emt 0:00:16] [#]} 19. c5 $146 {[%emt 0:01:21] White is more active.} (19. b4 $1 $16) ({Predecessor:} 19. Rad1 Ne7 20. Qd2 Nf7 21. c5 Ng6 22. Qb4 Bh4 23. Bh2 Qg5 24. Ne1 Nf4 25. Bxf4 Qxf4 {1-0 (33) Pasko,L (2061)-Rama,L (2323) Kukes 2014}) 19... Bg5 {[%emt 0:06:31]} 20. cxd6 {[%emt 0:00:39]} cxd6 {[%emt 0:00:04]} 21. Rad1 {[%emt 0:04:28]} Rf6 {[%emt 0:00:31]} 22. Rd3 {[%emt 0:00:53]} Qe7 {[%emt 0:03:31]} 23. a3 {[%emt 0:06:01]} (23. b4 $16) 23... Rg8 $11 {[%emt 0:05:06]} 24. Nb4 {[%emt 0:04:32]} Nxb4 {[%emt 0:11:41]} 25. axb4 {[%emt 0:00:06]} Nf7 {[%emt 0:00:52]} 26. Bh5 {[%emt 0:09:07]} Nd8 {[%emt 0:00:52]} 27. b5 {[%emt 0:00:06]} Qg7 {[%emt 0:07:51]} 28. Qb3 {[%emt 0:07:00]} (28. Bg4 $14) 28... Rh6 {[%emt 0:14:49]} (28... Bf4 $1 $15 29. Qa3 Ne6 30. Rxd6 (30. Qxa7 $2 Nc5 $19) (30. Qxd6 $2 Qh6 $19) 30... Bxg3 31. fxg3 Rxf1+ 32. Kxf1 Nd4) 29. Bg4 $1 $14 {[%emt 0:11:18]} Be3 {[%emt 0:00:50]} 30. Rxe3 {[%emt 0:00:37]} Qxg4 {[%emt 0:00:09]} 31. Qd1 {[%emt 0:00:08]} Qg7 {[%emt 0:02:48] The position is equal.} 32. Rfe1 {[%emt 0:04:45]} Qg5 {[%emt 0:01:14]} 33. Rd3 {[%emt 0:03:55]} Nf7 {[%emt 0:00:14]} 34. Qf3 {[%emt 0:01:01]} Rf6 {[%emt 0:00:22]} 35. Qe2 {[%emt 0:10:34]} h5 {[%emt 0:00:33]} 36. Rf3 {[%emt 0:00:19]} Rf4 {[%emt 0:00:13][%cal Oh5h4] [#] And now ...h4! would win.} 37. Qe3 {[%emt 0:01:16][%cal Rf3f4]} Rxf3 {[%emt 0:03:03]} 38. Qxf3 {[%emt 0:00:05]} Nh6 {[%emt 0:01:24]} 39. Qe3 {[%emt 0:05:40]} Qg6 {[%emt 0:00:46][%cal Oh5h4] aiming for ...h4!} 40. Qf3 {[%emt 0:00:05]} ({Wrong is} 40. Qxa7 $2 h4 41. Qe3 hxg3 $19) 40... Qg5 {[%emt 0:00:05] Against Bh4.  Weighted Error Value: White=0.16 (very precise) /Black=0.16 (very precise)} 1/2-1/2

[Event "Czech Open-GM 2022"]
[Site "Pardubice"]
[Date "2022.07.25"]
[Round "4.24"]
[White "Mullick, Raahil"]
[Black "Jurcik, Marian"]
[Result "1/2-1/2"]
[ECO "B32"]
[WhiteElo "2237"]
[BlackElo "2409"]
[Annotator "TA"]
[PlyCount "53"]
[EventDate "2022.07.22"]
[EventType "swiss"]
[EventCountry "CZE"]
[SourceTitle "playchess.com"]
[Source "ChessBase"]
[SourceQuality "1"]
[TimeControl "40/5400+30:1800+30"]

{[%evp 14,53,44,34,33,30,33,37,40,27,27,8,16,22,56,36,53,0,0,0,0,-14,18,4,18,30,16,-10,-5,-25,-37,-207,-51,-56,0,0,0,0,0,0,0,6]} 1. e4 c5 {[%emt 0:01:50]} 2. Nf3 {[%cal Bg1f3,Bf3d4,Bd4b5,Bb5a3,Ba3c4][%mdl 32]} Nc6 3. d4 {[%emt 0:00:15]} cxd4 {[%emt 0:00:12]} 4. Nxd4 {[%emt 0:00:03]} e5 {[%emt 0:00:40]} 5. Nb5 {[%emt 0:00:05]} d6 {[%emt 0:00:29]} 6. N1c3 {[%emt 0:00:06]} a6 {[%emt 0:00:11]} 7. Na3 {[%emt 0:00:04]} Be7 {[%emt 0:00:13]} 8. Nc4 {[%emt 0:14:09]} b5 {[%emt 0:00:23] B32: Sicilian: Löwenthal and Kalashnikov Variations.} 9. Ne3 {[%emt 0:00:02]} ({Of course not} 9. Qd5 Qc7 10. Ne3 b4 $15) 9... Nf6 {[%emt 0:00:15]} 10. Bd3 {[%emt 0:01:15]} Nb4 {[%emt 0:00:14] White is slightly better.} 11. O-O {[%emt 0:00:48]} O-O {[%emt 0:02:13]} 12. a4 {[%emt 0:08:14]} Nxd3 {[%emt 0:50:11]} 13. Qxd3 {[%emt 0:00:54] [#]} Bd7 $146 {[%emt 0:08:44]} ({Predecessor:} 13... b4 14. Ncd5 Nxd5 15. Nxd5 a5 16. Rd1 Bg4 17. f3 Be6 18. Be3 Bg5 19. Bxg5 Qxg5 {0-1 (71) Ziechaus,L (1646)-Jankowiak,A (1998) GER email 2013}) 14. Rd1 {[%emt 0:02:51][%cal Ra4b5]} bxa4 {[%emt 0:08:30]} 15. Ncd5 {[%emt 0:13:18]} (15. Nxa4 $14 Be6 16. b3) 15... Nxd5 $11 {[%emt 0:01:18]} 16. Nxd5 {[%emt 0:00:07]} Bc6 {[%emt 0:02:53]} 17. Bd2 {[%emt 0:17:06][%cal Od2a5]} Bxd5 {[%emt 0:02:17]} 18. Qxd5 {[%emt 0:02:26]} Rb8 {[%emt 0:04:11]} 19. Bc3 {[%emt 0:01:15][%mdl 1024] White has compensation.} Qe8 {[%emt 0:03:27]} 20. Qc4 {[%emt 0:06:12]} a3 $1 {[%emt 0:00:32]} 21. b4 {[%emt 0:08:36]} (21. bxa3 $5 {[%cal Rc4a6]} Rc8 22. Qd3 $11) 21... Qa4 {[%emt 0:06:27] Threatens to win with ...Rfc8.} 22. Qd3 $2 {[%emt 0:04:19] [#]} ({White should try} 22. Be1 $15) 22... Rfc8 $2 {[%emt 0:00:32]} (22... a5 $1 $19 {[%cal Ra5b4]} 23. b5 Rxb5) 23. Ra2 {[%emt 0:02:27]} Rc6 {[%emt 0:02:30]} (23... a5 $15 24. bxa5 Rb5) 24. Be1 {[%emt 0:04:25] The position is equal.} Rbc8 {[%emt 0:02:17][%cal Rc6c2]} 25. Rxa3 {[%emt 0:01:09]} Qxc2 {[%emt 0:00:11]} 26. Qxc2 {[%emt 0:00:23]} Rxc2 {[%emt 0:00:01]} 27. Rxa6 {[%emt 0:00:12] Weighted Error Value: White=0.22 (precise) /Black=0.20 (precise)} 1/2-1/2

[Event "Czech Open-GM 2022"]
[Site "Pardubice"]
[Date "2022.07.25"]
[Round "4.25"]
[White "Redzisz, Michal"]
[Black "Hollan, Martin"]
[Result "0-1"]
[ECO "D71"]
[WhiteElo "2232"]
[BlackElo "2399"]
[Annotator "TA"]
[PlyCount "88"]
[EventDate "2022.07.22"]
[EventType "swiss"]
[EventCountry "CZE"]
[SourceTitle "playchess.com"]
[Source "ChessBase"]
[SourceQuality "1"]
[TimeControl "40/5400+30:1800+30"]

{[%evp 14,88,15,5,16,0,0,0,0,0,0,0,0,-50,-44,-45,-44,-170,-135,-154,-106,-120,-109,-109,-108,-106,-107,-96,-97,-88,-104,-131,-124,-132,-125,-156,-152,-250,-183,-210,-199,-204,-205,-192,-188,-338,-339,-326,-314,-514,-489,-459,-453,-662,-652,-637,-625,-706,-661,-683,-643,-622,-583,-561,-525,-1254,-735,-672,-518,-669,-647,-723,-475,-1187,-1107,-12847,-12841]} 1. d4 {[%emt 0:00:05]} Nf6 {[%emt 0:00:08]} 2. c4 {[%emt 0:00:07]} g6 {[%emt 0:00:15]} 3. g3 {[%emt 0:00:24]} Bg7 {[%emt 0:00:09]} 4. Bg2 {[%emt 0:00:07]} O-O {[%emt 0:00:57]} 5. Nc3 {[%emt 0:00:10]} Nc6 {[%emt 0:00:15]} 6. Nf3 {[%emt 0:19:34]} d5 $1 {[%emt 0:00:08] 6...d5 scores better than 6...d6.} 7. cxd5 {[%emt 0:00:03]} Nxd5 {[%emt 0:00:09][%cal Bf6d5,Bd5c3,Bc3d1][%mdl 32]} 8. O-O {[%emt 0:00:02]} e5 {[%emt 0:07:16][%cal Re5d4] D74: Fianchetto Grünfeld: Main Line (5 Nf3 0-0 6 cxd5 Nxd5 7 0-0).} 9. Nxe5 {[%emt 0:25:49]} (9. Nxd5 {is more complex.} e4 10. Ne5 Qxd5 11. Nxc6 Qxc6 12. d5) 9... Nxc3 {[%emt 0:00:16]} 10. Nxc6 {[%emt 0:00:03]} Nxd1 {[%emt 0:00:15] The position is equal.} 11. Nxd8 {[%emt 0:00:03]} Nxf2 {[%emt 0:01:45]} 12. Nxb7 {[%emt 0:04:17]} Nh3+ {[%emt 0:48:24] [#]} 13. Bxh3 $146 {[%emt 0:12:26]} (13. Kh1 $11) ({Predecessor:} 13. Kh1 Bxd4 14. Na5 Bg4 15. Nc6 Nf2+ 16. Kg1 {½-½ (16) Krishna,C (2339)-Anagnostopoulos,K (2097) Vrachati 2013}) 13... Bxh3 $15 {[%emt 0:00:30]} 14. Rd1 {[%emt 0:00:02]} Bg4 {[%emt 0:06:27] And now ...Rfe8 would win. This bishop pair is nice.} 15. Nc5 {[%emt 0:22:40]} ({White should play} 15. Rd2 $15) 15... Bxe2 {[%emt 0:03:00]} 16. Rd2 {[%emt 0:00:19][%cal Bd1d2,Bd2c2,Bc2e2][%mdl 32]} Bg4 {[%emt 0:01:30]} (16... Rfe8 $142 $1 {Strongly threatening ...Rad8.} 17. b3 Rad8) 17. b3 $17 {[%emt 0:00:15]} Rad8 {[%emt 0:02:48]} 18. Bb2 {[%emt 0:00:50]} Bh6 {[%emt 0:05:03]} 19. Rc2 {[%emt 0:04:29]} Be3+ {[%emt 0:01:22]} 20. Kg2 {[%emt 0:00:02]} Bxd4 {[%emt 0:00:23] Black is more active.} 21. Bxd4 {[%emt 0:01:24]} Rxd4 {[%emt 0:00:08]} 22. h3 {[%emt 0:00:37]} Bf5 $36 {[%emt 0:00:29][%mdl 2048] Black is in control.} 23. Re2 {[%emt 0:00:04] [#]} h5 $1 {[%emt 0:05:02] Prevents g4.} 24. Rc1 {[%emt 0:03:33]} Rfd8 {[%emt 0:01:48]} 25. Kf2 {[%emt 0:00:03]} (25. Rce1 $17) 25... Rd2 {[%emt 0:03:16]} 26. Nb7 {[%emt 0:00:28] [#]} R8d3 {[%emt 0:02:54]} 27. Rxc7 {[%emt 0:01:15]} Rxe2+ {[%emt 0:00:44]} 28. Kxe2 {[%emt 0:00:03][%cal Og3g4]} Rxg3 $19 {[%emt 0:00:14][%mdl 4096] Endgame KRB-KRN} 29. Nd6 {[%emt 0:00:02]} (29. h4 {is a better defense.}) 29... Be6 {[%emt 0:00:45]} ({Weaker is} 29... Rxh3 30. Nxf5 gxf5 31. Rxa7 $17) ({Not} 29... Bxh3 30. Rxa7 Bg4+ 31. Kf2 $19) 30. Rxa7 {[%emt 0:00:03]} Rxh3 {[%emt 0:00:21]} 31. b4 $2 {[%emt 0:00:01]} (31. Ne4 {might work better.} Rh2+ 32. Nf2) 31... Rh2+ {[%emt 0:02:12] Black is clearly winning.} 32. Ke3 {[%emt 0:00:05]} Rb2 {[%emt 0:03:34] Hoping for ...h4.} 33. b5 {[%emt 0:00:20]} (33. Ra8+ $142 Kh7 34. a3) 33... h4 {[%emt 0:00:34][%cal Bh5h4,Bh4h3][%mdl 32]} 34. Ra4 {[%emt 0:00:57]} g5 {[%emt 0:01:27]} 35. Rd4 {[%emt 0:00:51]} h3 {[%emt 0:00:36]} 36. Ne4 {[%emt 0:00:05]} h2 {[%emt 0:00:58]} 37. Rd1 {[%emt 0:00:01]} Rxb5 {[%emt 0:01:49]} 38. Rh1 {[%emt 0:00:23]} Rb2 {[%emt 0:00:19] ...g4 is the strong threat.} 39. Nf2 {[%emt 0:01:49]} Rxa2 {[%emt 0:00:27] aiming for ...f5.} 40. Rxh2 {[%emt 0:00:01]} Kg7 {[%emt 0:00:24]} 41. Rh1 {[%emt 0:30:01]} Ra3+ {[%emt 0:02:33]} 42. Ke2 {[%emt 0:00:00]} g4 {[%emt 0:04:20]} 43. Rg1 {[%emt 0:00:00]} (43. Rc1 $142) 43... f5 {[%emt 0:02:25]} 44. Kf1 {[%emt 0:00:00]} Kf6 {[%emt 0:01:51] Weighted Error Value: White=0.83/Black=0.23 (precise)} 0-1

[Event "Czech Open-GM 2022"]
[Site "Pardubice"]
[Date "2022.07.25"]
[Round "4.26"]
[White "Aradhya, Garg"]
[Black "Finek, Vaclav"]
[Result "1-0"]
[ECO "D85"]
[WhiteElo "2229"]
[BlackElo "2393"]
[Annotator "TA"]
[PlyCount "89"]
[EventDate "2022.07.22"]
[EventType "swiss"]
[EventCountry "CZE"]
[SourceTitle "playchess.com"]
[Source "ChessBase"]
[SourceQuality "1"]
[TimeControl "40/5400+30:1800+30"]

{[%evp 20,89,25,21,16,18,15,14,44,38,57,42,62,72,61,62,60,51,69,70,69,68,61,52,57,50,69,47,56,13,30,24,66,9,43,21,21,23,25,10,19,8,34,33,318,302,349,364,385,341,463,461,816,779,734,722,1113,1707,1063,827,29985,29986,29986,29987,29992,559,29990,29991,29991,29992,29992,29993]} 1. d4 {[%emt 0:00:02]} Nf6 {[%emt 0:00:04]} 2. c4 {[%emt 0:00:03]} g6 {[%emt 0:00:05]} 3. Nc3 {[%emt 0:00:04]} d5 {[%emt 0:00:05]} 4. cxd5 {[%emt 0:00:08]} Nxd5 {[%emt 0:00:05]} 5. e4 {[%emt 0:00:03]} Nxc3 {[%emt 0:00:06]} 6. bxc3 {[%emt 0:00:03]} Bg7 {[%emt 0:00:08]} 7. Nf3 {[%emt 0:00:04]} c5 {[%emt 0:00:05]} 8. Bb5+ {[%emt 0:00:09]} Bd7 {[%emt 0:01:34]} 9. Bxd7+ {[%emt 0:02:15]} Qxd7 {[%emt 0:00:14]} 10. O-O {[%emt 0:00:07]} O-O {[%emt 0:00:28] The main line 10...0-0 scores better than 10...cxd4.} 11. Be3 {[%emt 0:04:19]} cxd4 {[%emt 0:02:12] D85: Exchange Grünfeld: Unusual White 7th moves and lines with 7 Nf3.} 12. cxd4 {[%emt 0:00:02]} e6 {[%emt 0:00:17]} 13. Rc1 $1 {[%emt 0:25:44]} Nc6 {[%emt 0:03:57] The position is equal.} 14. d5 {[%emt 0:01:46]} exd5 {[%emt 0:02:17]} 15. exd5 {[%emt 0:00:01][%cal Be4d5,Bd5d6][%mdl 32]} Ne7 {[%emt 0:03:29]} 16. d6 {[%emt 0:00:33]} Nc6 {[%emt 0:00:20] [#]} 17. Qd5 $146 {[%emt 0:01:02]} ({Predecessor:} 17. Qd2 Rfe8 18. Bf4 Rad8 19. Rfe1 h6 20. h4 Bf8 21. a3 Rxe1+ 22. Rxe1 Qf5 23. Bg3 {1-0 (43) Sueess,F (2108)-Epinoux,J (2071) ICCF email 2009}) 17... Rad8 {[%emt 0:09:27]} 18. Rfd1 {[%emt 0:00:16]} Rfe8 {[%emt 0:00:05][%cal Bf8e8,Be8e6,Be6e2][%mdl 32]} 19. Bg5 {[%emt 0:01:43] White is more active.} Rc8 {[%emt 0:01:40]} 20. h4 {[%emt 0:00:57][%cal Bh2h4,Bh4h5][%mdl 32]} Re6 {[%emt 0:06:28]} 21. h5 {[%emt 0:06:44]} h6 {[%emt 0:09:25]} 22. Bf4 {[%emt 0:05:08]} g5 {[%emt 0:01:09]} 23. Bg3 {[%emt 0:00:15]} Rce8 {[%emt 0:00:43]} 24. Kh2 {[%emt 0:13:21]} Re2 {[%emt 0:13:12]} 25. Rb1 {[%emt 0:04:15]} Kh8 {[%emt 0:05:40]} 26. Ng1 {[%emt 0:10:46]} (26. Rdc1 $1 $14) 26... R2e4 {[%emt 0:06:00]} 27. Qb5 {[%emt 0:00:45]} f5 $1 {[%emt 0:06:01] White must now prevent ...f4.} 28. f3 {[%emt 0:06:31]} (28. Qxb7 Qxb7 29. Rxb7 f4 $17) 28... Rd4 {[%emt 0:00:03]} 29. Rxd4 {[%emt 0:00:12]} Bxd4 {[%emt 0:00:04]} 30. Nh3 {[%emt 0:01:40]} (30. Qxb7 Qxb7 31. Rxb7 f4 32. Bxf4 gxf4 $17) 30... b6 {[%emt 0:10:38]} 31. Rd1 $36 {[%emt 0:02:34][%mdl 2048] White fights for an advantage.} Be3 {[%emt 0:03:24][%mdl 8192] Loses the game.} (31... f4 $1 $14 32. Bf2 (32. Rxd4 a6 $15) 32... Be5) 32. Qb2+ $18 {[%emt 0:00:58]} Kh7 {[%emt 0:02:27]} 33. Qf6 {[%emt 0:00:38] [#] Prevents Rf8. And now Qg6+ would win.} Rg8 {[%emt 0:01:01] Inhibits Qg6+.} 34. Bf2 {[%emt 0:01:56]} Bxf2 {[%emt 0:02:54]} 35. Nxf2 {[%emt 0:00:01]} Rg7 {[%emt 0:06:47]} (35... g4 $142 36. fxg4 fxg4) 36. Rc1 {[%emt 0:01:14]} g4 {[%emt 0:03:08]} 37. fxg4 {[%emt 0:00:05]} Rg5 {[%emt 0:01:00]} 38. Nh3 {[%emt 0:01:36]} Rxg4 {[%emt 0:00:07] [#]} 39. Rxc6 $1 {[%emt 0:00:39][%mdl 512]} Rxg2+ {[%emt 0:01:05]} (39... Qxc6 40. Qxf5+) 40. Kxg2 {[%emt 0:00:02]} Qxc6+ {[%emt 0:00:09]} 41. Kg3 {[%emt 0:30:12]} Qb5 {[%emt 0:31:09]} 42. Qf7+ {[%emt 0:01:00]} Kh8 {[%emt 0:00:05]} 43. Nf4 {[%emt 0:00:17][%cal Rf4g6] White mates.} Qe5 {[%emt 0:00:00]} 44. Qf8+ {[%emt 0:00:00]} Kh7 {[%emt 0:00:00]} 45. Qe7+ {[%emt 0:00:00] Weighted Error Value: White=0.21 (precise) /Black=0.47} ({Not} 45. d7 Qe3+ 46. Kg2 Qe4+ 47. Kg1 (47. Kg3 Qe3+ 48. Kg2 Qe4+ 49. Kg1 Qe3+ 50. Kg2 $16) 47... Qe3+ 48. Kg2 (48. Kh1 Qf3+ 49. Kg1 Qe3+ 50. Kh1 Qf3+ 51. Kg1 Qe3+ $16) 48... Qe4+ 49. Kg1 (49. Kg3 Qe3+ 50. Kg2 $16) 49... Qe3+ 50. Kh1 Qf3+ 51. Kg1 Qe3+ $16) 1-0

[Event "Czech Open-GM 2022"]
[Site "Pardubice"]
[Date "2022.07.25"]
[Round "4.27"]
[White "Ludvik, Tomas"]
[Black "Klabis, Rokas"]
[Result "0-1"]
[ECO "E11"]
[WhiteElo "2223"]
[BlackElo "2382"]
[Annotator "TA"]
[PlyCount "140"]
[EventDate "2022.07.22"]
[EventType "swiss"]
[EventCountry "CZE"]
[SourceTitle "playchess.com"]
[Source "ChessBase"]
[SourceQuality "1"]
[TimeControl "40/5400+30:1800+30"]

{[%evp 11,140,45,45,15,18,16,13,12,11,14,16,18,6,8,14,8,23,16,14,21,20,14,18,18,27,32,32,26,26,26,22,23,20,0,0,0,0,0,0,0,0,0,31,24,29,24,24,24,28,24,34,29,27,-8,0,-9,4,-26,-8,-34,-32,-33,-15,-35,-40,-41,-40,-40,-6,-61,-56,-65,-10,-6,-6,-6,-6,-6,-6,-23,0,0,0,0,0,0,0,0,0,0,0,0,0,0,0,0,0,0,0,0,0,-15,-15,-42,0,0,0,0,-8,-2269,-1669,-4598,-5940,-2560,-2050,-1552,-1574,-29968,-29972,-29974,-29975,-29975,-29976,-29976,-29977,-29975,-29977,-29982,-29979,-29987,-29986]} 1. d4 {[%emt 0:00:03]} Nf6 {[%emt 0:00:07]} 2. c4 {[%emt 0:00:05]} e6 {[%emt 0:00:04]} 3. Nf3 {[%emt 0:00:04]} Bb4+ {[%emt 0:00:30]} 4. Nbd2 {[%emt 0:00:13]} d5 {[%emt 0:00:26]} 5. Qa4+ {[%emt 0:01:50]} Nc6 {[%emt 0:00:48]} 6. a3 {[%emt 0:00:51]} Be7 {[%emt 0:00:06]} 7. g3 {[%emt 0:04:33] E11: Bogo-Indian.} O-O {[%emt 0:05:30]} 8. Bg2 {[%emt 0:00:40]} a5 {[%emt 0:00:06]} 9. O-O {[%emt 0:01:18] The position is equal.} Bd7 {[%emt 0:03:08][%cal Oc6d4]} 10. Qc2 {[%emt 0:01:48]} a4 {[%emt 0:00:27]} 11. Rd1 {[%emt 0:06:35]} Na5 {[%emt 0:07:53]} 12. Ne5 {[%emt 0:01:59]} Be8 {[%emt 0:00:05]} 13. Rb1 {[%emt 0:02:11] [#]} Nd7 $146 {[%emt 0:15:10]} ({Predecessor:} 13... Qb8 14. e4 Nb3 15. cxd5 Nxd4 16. Qd3 c5 17. Ndf3 Bb5 18. Qe3 exd5 19. Nxd4 cxd4 20. Qxd4 dxe4 {1-0 (39) Allen,A-Viner,P (2215) Melbourne 1991}) 14. Nxd7 {[%emt 0:05:46]} Qxd7 {[%emt 0:00:44]} 15. cxd5 {[%emt 0:06:23]} exd5 {[%emt 0:00:16]} 16. b4 {[%emt 0:09:17]} axb3 {[%emt 0:06:13]} 17. Nxb3 {[%emt 0:00:56]} b6 {[%emt 0:02:03]} 18. Nxa5 {[%emt 0:03:45]} Rxa5 {[%emt 0:00:04]} 19. Bf4 {[%emt 0:00:44]} Bd6 {[%emt 0:00:08]} 20. Bxd6 {[%emt 0:01:25]} Qxd6 {[%emt 0:00:04]} 21. Rdc1 {[%emt 0:00:19]} Ra7 {[%emt 0:00:33]} 22. Qf5 {[%emt 0:11:49]} Bc6 {[%emt 0:06:53]} 23. Rc3 {[%emt 0:05:11]} Rd8 {[%emt 0:06:12]} 24. Qe5 {[%emt 0:11:42]} Be8 {[%emt 0:10:30]} 25. Qxd6 {[%emt 0:05:46]} Rxd6 {[%emt 0:02:05]} 26. Rbc1 {[%emt 0:03:14]} Rd7 {[%emt 0:04:54]} 27. e3 {[%emt 0:01:38]} Kf8 {[%emt 0:01:02]} 28. h4 {[%emt 0:00:50]} f6 {[%emt 0:01:59]} 29. Bf3 {[%emt 0:00:56]} Bf7 {[%emt 0:03:39]} 30. Be2 {[%emt 0:01:00]} Re7 {[%emt 0:01:50]} 31. Bb5 {[%emt 0:01:37]} Be8 {[%emt 0:01:26]} 32. Bd3 {[%emt 0:01:23]} (32. a4 $5) 32... g6 {[%emt 0:01:56]} 33. Rb1 {[%emt 0:00:46]} Kf7 {[%emt 0:01:38]} 34. Be2 {[%emt 0:02:24]} Ke6 {[%emt 0:00:37]} 35. Bf3 {[%emt 0:00:47]} Kd6 {[%emt 0:00:48]} 36. Be2 {[%emt 0:00:52]} Bd7 {[%emt 0:01:21]} 37. Bd3 {[%emt 0:00:33]} Re8 {[%emt 0:03:25]} 38. Kg2 {[%emt 0:01:28]} Rea8 {[%emt 0:08:51]} 39. Rbb3 {[%emt 0:00:08]} Bc8 {[%emt 0:01:04]} 40. Kf1 {[%emt 0:05:01]} (40. Bb5 $11) 40... Ba6 $15 {[%emt 0:02:37]} 41. Ke2 {[%emt 0:32:18]} Bc4 {[%emt 0:33:09]} ({Black should try} 41... h5 $15) 42. Bxc4 $11 {[%emt 0:00:31]} dxc4 {[%emt 0:00:20]} 43. Rxc4 {[%emt 0:00:08]} Rxa3 {[%emt 0:00:04]} 44. Rxa3 {[%emt 0:00:00]} Rxa3 {[%emt 0:00:00][%mdl 4096] Endgame KR-KR} 45. Rc2 {[%emt 0:00:00]} Ra5 {[%emt 0:00:00]} 46. e4 c5 {[%emt 0:00:00]} 47. dxc5+ {[%emt 0:00:00]} Rxc5 {[%emt 0:00:00]} 48. Rd2+ {[%emt 0:00:00]} Kc7 {[%emt 0:00:00]} 49. Ke3 {[%emt 0:00:00]} b5 {[%emt 0:00:00]} 50. Kd4 {[%emt 0:00:00]} Kc6 {[%emt 0:00:00]} 51. Ra2 {[%emt 0:00:00] [#] Threatens to win with Ra6+.} Rc4+ {[%emt 0:00:00]} 52. Kd3 {[%emt 0:00:00]} Ra4 {[%emt 0:00:00] Inhibits Ra6+.} 53. Rc2+ {[%emt 0:00:00]} Kd6 {[%emt 0:00:00]} 54. Rc8 {[%emt 0:00:00]} Ra2 {[%emt 0:00:00]} 55. Ke3 {[%emt 0:00:00]} b4 {[%emt 0:00:00]} 56. f4 {[%emt 0:00:35]} Ra3+ {[%emt 0:00:00]} 57. Kf2 {[%emt 0:00:20]} h5 {[%emt 0:00:00]} (57... Ra5 $5 {[%cal Ra5b5]}) 58. Rb8 {[%emt 0:05:47]} b3 {[%emt 0:01:50]} 59. Kg2 {[%emt 0:01:04]} Kc5 {[%emt 0:01:00] [#] Strongly threatening ...Kd4.} 60. Kh3 $2 {[%emt 0:01:07][%mdl 8192] This move loses the game for White.} (60. e5 $11) 60... Kd4 $19 {[%emt 0:00:43]} 61. Rb6 {[%emt 0:00:36]} Kc3 {[%emt 0:02:42]} 62. Rc6+ {[%emt 0:00:19]} Kd3 {[%emt 0:00:58]} 63. Rd6+ {[%emt 0:00:36]} Kc4 {[%emt 0:01:49] ( -> ...b2)} 64. Rb6 {[%emt 0:00:32]} Ra5 {[%emt 0:00:44] Black mates.} 65. g4 {[%emt 0:00:38]} Rb5 {[%emt 0:00:31]} 66. Rc6+ {[%emt 0:00:28]} Kd4 {[%emt 0:00:06]} 67. Rc1 {[%emt 0:00:04]} b2 {[%emt 0:00:13]} 68. Rb1 {[%emt 0:00:01]} Kxe4 {[%emt 0:01:20]} 69. g5 {[%emt 0:01:05]} fxg5 {[%emt 0:00:06]} 70. fxg5 {[%emt 0:00:05]} Kd3 {[%emt 0:00:14] Weighted Error Value: White=0.22 (precise) /Black=0.07 (flawless)} 0-1